bitfinex/quotes_SOLUSD_20230104
["timestamp","ask_amount","ask_price","bid_price","bid_amount"]
[1672820682272,54.01,13.899,13.868,43.51734441]
[1672820682481,54.01,13.899,13.869,3.455]
[1672820683122,60.59880789,13.898,13.868,8.289]
[1672820683319,54.02,13.897,13.868,8.289]
[1672820684156,114.61880789,13.897,13.868,8.289]
[1672820684577,114.61880789,13.897,13.868,48.90301107]
[1672820684803,114.61880789,13.897,13.868,8.289]
[1672820685335,312.0,13.881,13.869,20.0]
[1672820685648,312.0,13.881,13.87,37.25]
[1672820685847,312.0,13.881,13.87,75.16001107]
[1672820686061,312.0,13.881,13.871,57.91001107]
[1672820686382,312.0,13.881,13.872,37.91001107]
[1672820686704,312.0,13.881,13.873,66.5]
[1672820686917,312.0,13.881,13.873,20.0]
[1672820687113,114.61880789,13.897,13.874,37.91001107]
[1672820687324,114.61880789,13.897,13.875,20.0]
[1672820687644,54.02,13.897,13.875,20.0]
[1672820687857,14.75,13.89,13.875,37.91001107]
[1672820688172,114.64880789,13.889,13.876,20.0]
[1672820688579,114.64880789,13.889,13.867,53.6403446]
[1672820688580,114.64880789,13.889,13.868,20.0]
[1672820689013,114.64880789,13.889,13.867,53.6403446]
[1672820689415,54.05,13.889,13.868,35.37934441]
[1672820690254,54.05,13.889,13.867,53.6403446]
[1672820690466,54.05,13.889,13.868,35.37934441]
[1672820690684,54.05,13.889,13.868,55.37934441]
[1672820691307,312.0,13.879,13.868,55.37934441]
[1672820692272,54.05,13.889,13.869,46.67]
[1672820692461,312.0,13.879,13.868,106.28934441]
[1672820692677,312.0,13.879,13.87,44.55888047]
[1672820693429,312.0,13.879,13.871,54.12]
[1672820693621,312.0,13.879,13.868,20.0]
[1672820693831,312.0,13.879,13.871,44.55888047]
[1672820694057,312.0,13.879,13.867,53.6403446]
[1672820694369,312.0,13.879,13.868,38.62186714]
[1672820694582,287.0,13.879,13.868,38.62186714]
[1672820696046,287.0,13.879,13.869,20.0]
[1672820696460,287.0,13.879,13.869,62.768297]
[1672820696785,262.0,13.879,13.869,62.768297]
[1672820696996,262.0,13.879,13.87,54.12]
[1672820697190,262.0,13.879,13.869,62.768297]
[1672820697401,262.0,13.879,13.871,46.4116011]
[1672820697606,14.6,13.89,13.871,46.4116011]
[1672820697814,54.05,13.889,13.867,53.6403446]
[1672820698240,54.05,13.889,13.867,93.86793237]
[1672820699088,54.05,13.889,13.868,20.0]
[1672820699512,54.05,13.889,13.869,40.22758777]
[1672820699711,54.05,13.889,13.87,20.0]
[1672820700133,54.05,13.889,13.87,60.22758777]
[1672820700578,29.05,13.889,13.87,60.22758777]
[1672820701091,54.01,13.899,13.87,60.22758777]
[1672820701283,312.0,13.884,13.871,54.12]
[1672820701705,312.0,13.884,13.872,40.22758777]
[1672820702248,312.0,13.884,13.873,20.0]
[1672820702564,312.0,13.884,13.874,40.22758777]
[1672820702759,312.0,13.884,13.875,20.0]
[1672820703181,312.0,13.884,13.875,60.22758777]
[1672820703420,54.01,13.899,13.875,60.22758777]
[1672820704020,130.99819482,13.899,13.875,60.22758777]
[1672820704248,105.99819482,13.899,13.875,60.22758777]
[1672820704454,105.99819482,13.899,13.876,54.1]
[1672820704650,12.60567304,13.899,13.876,54.1]
[1672820704878,12.60567304,13.899,13.877,40.22758777]
[1672820705084,53.97,13.909,13.878,54.09]
[1672820705633,53.97,13.909,13.879,40.22758777]
[1672820705928,53.97,13.909,13.88,54.08]
[1672820706118,53.97,13.909,13.881,20.0]
[1672820706329,312.0,13.894,13.881,60.22758777]
[1672820706559,312.0,13.894,13.882,40.22758777]
[1672820706889,312.0,13.894,13.883,20.0]
[1672820707066,287.0,13.894,13.883,20.0]
[1672820707293,53.97,13.909,13.896,311.26732686]
[1672820707515,312.0,13.905,13.896,311.26732686]
[1672820707716,312.0,13.905,13.897,69.39886476]
[1672820709079,312.0,13.905,13.898,20.0]
[1672820709504,312.0,13.905,13.899,81.06553142]
[1672820709717,312.0,13.905,13.9,20.0]
[1672820710344,53.94,13.917,13.9,20.0]
[1672820710554,323.76488555,13.92,13.9,101.06553142]
[1672820710767,53.93,13.919,13.9,101.06553142]
[1672820710964,320.50078431,13.918,13.9,101.06553142]
[1672820711391,312.0,13.911,13.9,122.57796589]
[1672820713829,312.0,13.911,13.9,137.32796589]
[1672820714454,312.0,13.911,13.901,54.0]
[1672820714684,312.0,13.911,13.902,20.0]
[1672820714871,312.0,13.911,13.903,53.99]
[1672820715074,312.0,13.911,13.904,20.0]
[1672820715285,312.0,13.911,13.904,106.89886476]
[1672820715497,312.0,13.911,13.905,86.89886476]
[1672820715704,312.0,13.911,13.906,20.0]
[1672820716548,312.0,13.911,13.897,54.02]
[1672820716549,312.0,13.911,13.903,50.11733871]
[1672820716762,312.0,13.911,13.904,20.0]
[1672820717187,312.0,13.911,13.905,51.63400538]
[1672820717496,320.50078431,13.918,13.906,20.0]
[1672820717497,53.94,13.917,13.906,20.0]
[1672820717917,53.94,13.917,13.905,51.63400538]
[1672820718557,53.94,13.917,13.882,54.08]
[1672820718990,53.94,13.917,13.893,40.11687204]
[1672820719198,53.94,13.917,13.897,20.0]
[1672820719622,53.94,13.917,13.898,40.11687204]
[1672820720364,312.0,13.907,13.896,311.26732686]
[1672820720576,53.98,13.906,13.896,311.26732686]
[1672820720978,53.98,13.906,13.897,20.0]
[1672820721190,53.98,13.906,13.896,311.26732686]
[1672820721713,53.97,13.909,13.896,311.26732686]
[1672820722135,53.97,13.909,13.896,288.00912686]
[1672820722353,53.97,13.909,13.896,230.38012686]
[1672820722656,53.97,13.909,13.896,219.04992686]
[1672820723611,53.97,13.909,13.896,127.18342686]
[1672820723822,53.97,13.909,13.896,115.01372686]
[1672820724257,312.0,13.897,13.896,115.01372686]
[1672820724461,366.02,13.897,13.868,54.13]
[1672820724658,54.02,13.896,13.869,21.51243447]
[1672820724877,54.02,13.896,13.87,47.49]
[1672820725185,54.02,13.896,13.871,21.51243447]
[1672820725390,54.02,13.896,13.872,52.41]
[1672820725596,54.01,13.899,13.872,80.59475528]
[1672820725816,54.01,13.899,13.873,49.69718975]
[1672820726026,54.01,13.899,13.874,54.11]
[1672820726235,54.01,13.899,13.874,123.80718975]
[1672820726446,54.01,13.899,13.875,49.69718975]
[1672820726676,54.01,13.899,13.876,74.1]
[1672820726878,54.01,13.899,13.876,95.61243447]
[1672820727284,54.01,13.899,13.876,74.1]
[1672820727513,54.01,13.899,13.876,20.0]
[1672820727715,54.01,13.899,13.868,51.81]
[1672820727917,54.01,13.899,13.869,20.0]
[1672820728129,54.01,13.899,13.87,50.56]
[1672820728338,312.0,13.888,13.871,20.0]
[1672820728555,307.0,13.888,13.872,51.91]
[1672820728754,307.0,13.888,13.873,20.0]
[1672820728963,307.0,13.888,13.874,54.11]
[1672820729172,307.0,13.888,13.875,20.0]
[1672820729397,307.0,13.888,13.875,41.51243447]
[1672820729611,307.0,13.888,13.875,20.0]
[1672820730050,307.0,13.888,13.872,20.0]
[1672820730560,307.0,13.888,13.872,41.51243447]
[1672820730890,307.0,13.888,13.872,20.0]
[1672820731077,54.01,13.899,13.873,54.11]
[1672820731291,14.66,13.89,13.874,20.0]
[1672820731502,54.05,13.889,13.872,20.0]
[1672820732144,14.66,13.89,13.873,21.51243447]
[1672820732355,14.66,13.89,13.874,20.0]
[1672820732553,14.66,13.89,13.871,20.0]
[1672820732981,54.05,13.889,13.871,41.51243447]
[1672820733728,54.05,13.889,13.871,20.0]
[1672820734249,287.0,13.879,13.868,20.0]
[1672820734445,287.0,13.879,13.871,21.51243447]
[1672820734873,287.0,13.879,13.872,54.11]
[1672820735088,14.66,13.89,13.872,82.29475528]
[1672820735303,14.66,13.89,13.872,103.80718975]
[1672820735493,14.66,13.89,13.872,82.29475528]
[1672820735820,14.66,13.89,13.872,54.11]
[1672820736037,14.66,13.89,13.869,54.13]
[1672820736243,14.66,13.89,13.873,20.0]
[1672820736460,14.66,13.89,13.874,54.11]
[1672820736666,14.66,13.89,13.875,20.0]
[1672820737082,14.66,13.89,13.872,20.0]
[1672820737304,14.66,13.89,13.873,54.11]
[1672820737614,54.01,13.899,13.874,20.0]
[1672820737807,54.01,13.899,13.875,54.1]
[1672820738021,312.0,13.89,13.876,20.0]
[1672820738445,312.0,13.89,13.876,53.77291245]
[1672820738662,312.0,13.89,13.877,33.77291245]
[1672820738873,312.0,13.89,13.878,20.0]
[1672820739093,14.61,13.89,13.878,20.0]
[1672820739298,54.05,13.889,13.878,20.0]
[1672820739704,54.05,13.889,13.869,20.0]
[1672820740118,54.05,13.889,13.87,33.77291245]
[1672820740660,54.05,13.889,13.871,41.51243447]
[1672820740864,54.01,13.899,13.871,95.63243447]
[1672820741085,54.01,13.899,13.872,60.12039498]
[1672820741286,54.01,13.899,13.873,54.11]
[1672820741498,54.01,13.899,13.874,20.0]
[1672820741708,54.01,13.899,13.874,80.12039498]
[1672820741931,54.01,13.899,13.875,60.12039498]
[1672820742133,312.0,13.879,13.876,20.0]
[1672820742339,54.01,13.899,13.876,20.0]
[1672820742340,54.01,13.899,13.876,41.51243447]
[1672820742552,54.01,13.899,13.881,253.49999999]
[1672820743187,54.01,13.899,13.882,38.60796051]
[1672820744230,54.01,13.899,13.883,20.0]
[1672820744665,54.01,13.899,13.884,38.60796051]
[1672820744984,54.01,13.899,13.885,20.0]
[1672820745517,312.0,13.886,13.885,58.60796051]
[1672820745820,312.0,13.886,13.885,20.0]
[1672820746015,312.0,13.886,13.882,20.0]
[1672820746439,54.01,13.899,13.882,20.0]
[1672820748339,14.71,13.89,13.882,20.0]
[1672820748537,54.05,13.889,13.882,20.0]
[1672820748752,54.05,13.889,13.881,253.49999999]
[1672820749498,312.0,13.882,13.881,253.49999999]
[1672820750117,312.0,13.882,13.881,273.49999999]
[1672820750447,312.0,13.882,13.881,253.49999999]
[1672820751591,312.0,13.882,13.881,273.49999999]
[1672820755261,312.0,13.882,13.881,253.49999999]
[1672820755487,366.08,13.882,13.862,14.843149]
[1672820755698,221.48,13.89,13.862,14.843149]
[1672820755699,16.10068892,13.879,13.868,20.0]
[1672820755902,73.44,13.88,13.868,20.0]
[1672820756845,54.09,13.879,13.868,20.0]
[1672820757373,54.09,13.879,13.862,14.843149]
[1672820758739,54.09,13.879,13.868,20.0]
[1672820761668,312.0,13.869,13.868,20.0]
[1672820769146,45.7538,13.878,13.868,20.0]
[1672820769474,357.7538,13.878,13.868,64.28108515]
[1672820770413,45.7538,13.878,13.868,64.28108515]
[1672820772394,20.7538,13.878,13.868,64.28108515]
[1672820772724,24.5499,13.889,13.868,85.79351962]
[1672820772932,24.5499,13.889,13.869,48.4779]
[1672820773137,54.01,13.899,13.87,11.67]
[1672820773348,54.01,13.899,13.87,150.95783635]
[1672820773679,312.0,13.889,13.871,65.82933635]
[1672820773991,312.0,13.889,13.872,36.87243447]
[1672820774210,312.0,13.889,13.873,20.0]
[1672820774390,54.01,13.899,13.874,22.35]
[1672820774599,54.01,13.899,13.875,20.0]
[1672820774829,54.01,13.899,13.876,47.8076]
[1672820775041,54.01,13.899,13.877,20.0]
[1672820775240,54.01,13.899,13.877,67.8076]
[1672820775452,14.75,13.89,13.877,67.8076]
[1672820777560,312.0,13.883,13.877,108.82839504]
[1672820777762,312.0,13.883,13.878,18.56]
[1672820777983,312.0,13.883,13.877,61.02079504]
[1672820778523,312.0,13.883,13.877,20.0]
[1672820779036,312.0,13.883,13.873,20.0]
[1672820779649,312.0,13.883,13.871,20.0]
[1672820779980,14.71,13.89,13.872,34.91]
[1672820780193,14.71,13.89,13.873,20.0]
[1672820780503,14.71,13.89,13.874,38.58]
[1672820780715,14.71,13.89,13.875,20.0]
[1672820780929,47.5474,13.894,13.875,20.0]
[1672820781116,47.5474,13.894,13.876,74.11550837]
[1672820781330,47.5474,13.894,13.877,20.0]
[1672820781541,47.5474,13.894,13.878,40.09]
[1672820781757,47.5474,13.894,13.879,20.0]
[1672820782181,54.03,13.893,13.877,20.0]
[1672820782416,47.5474,13.894,13.877,20.0]
[1672820782605,101.5774,13.894,13.877,122.57127617]
[1672820782835,312.0,13.884,13.877,101.0588417]
[1672820783041,312.0,13.884,13.877,58.0688417]
[1672820785574,312.0,13.884,13.877,79.58127617]
[1672820786393,22.5474,13.894,13.877,79.58127617]
[1672820786606,54.01,13.9,13.878,54.09]
[1672820786816,53.97,13.908,13.878,126.2557]
[1672820787037,53.97,13.908,13.879,117.21347123]
[1672820787340,53.97,13.908,13.88,120.6402057]
[1672820787553,53.97,13.908,13.88,192.4723057]
[1672820787779,53.97,13.908,13.881,66.5602057]
[1672820787982,53.97,13.908,13.882,125.9121]
[1672820788192,53.97,13.908,13.883,20.0]
[1672820788395,53.97,13.908,13.884,125.9021]
[1672820788606,53.97,13.908,13.885,20.0]
[1672820788814,53.97,13.908,13.886,48.2097]
[1672820789341,312.0,13.891,13.887,20.0]
[1672820789665,312.0,13.891,13.887,65.04777123]
[1672820791248,340.17095147,13.909,13.893,311.31612031]
[1672820791643,286.20095147,13.909,13.894,48.34110456]
[1672820792718,53.97,13.908,13.894,48.34110456]
[1672820793675,53.97,13.908,13.893,311.31612031]
[1672820793876,53.97,13.908,13.893,310.81612031]
[1672820794088,312.0,13.9,13.893,310.81612031]
[1672820795447,312.0,13.9,13.894,20.0]
[1672820795974,28.98,13.906,13.894,20.0]
[1672820796189,53.97,13.908,13.894,68.34110456]
[1672820796714,311.19685147,13.909,13.894,68.34110456]
[1672820798931,312.0,13.905,13.895,54.02]
[1672820799328,312.0,13.905,13.896,72.69014389]
[1672820799761,312.0,13.905,13.897,72.69014389]
[1672820799970,261.20095147,13.909,13.897,51.17770942]
[1672820800187,261.20095147,13.909,13.898,71.17770942]
[1672820800379,261.20095147,13.909,13.898,51.17770942]
[1672820800594,261.20095147,13.909,13.899,51.17770942]
[1672820800797,236.20095147,13.909,13.899,51.17770942]
[1672820801005,236.20095147,13.909,13.9,54.01]
[1672820801227,236.20095147,13.909,13.9,75.52243447]
[1672820801439,236.20095147,13.909,13.901,51.17770942]
[1672820801644,236.20095147,13.909,13.901,72.69014389]
[1672820801867,236.20095147,13.909,13.902,75.51243447]
[1672820802065,236.20095147,13.909,13.902,147.46107118]
[1672820802278,236.20095147,13.909,13.903,113.46107118]
[1672820802593,236.20095147,13.909,13.904,21.51243447]
[1672820802812,236.20095147,13.909,13.905,20.0]
[1672820803022,236.20095147,13.909,13.905,91.94863671]
[1672820804185,236.20095147,13.909,13.905,113.46107118]
[1672820804376,124.35095147,13.909,13.906,53.67386682]
[1672820804589,124.35095147,13.909,13.905,91.94863671]
[1672820805445,124.35095147,13.909,13.906,21.51243447]
[1672820805656,124.35095147,13.909,13.905,91.94863671]
[1672820807113,436.35095147,13.909,13.905,91.94863671]
[1672820808265,436.35095147,13.909,13.906,21.51243447]
[1672820808478,124.35095147,13.909,13.906,21.51243447]
[1672820808711,124.35095147,13.909,13.907,20.0]
[1672820810996,124.35095147,13.909,13.899,66.3582]
[1672820811204,124.35095147,13.909,13.901,62.81138056]
[1672820811418,124.35095147,13.909,13.902,20.0]
[1672820811419,436.35095147,13.909,13.902,20.0]
[1672820811645,436.35095147,13.909,13.902,82.81138056]
[1672820811960,436.35095147,13.909,13.903,62.81138056]
[1672820812154,436.35095147,13.909,13.904,20.0]
[1672820812360,436.35095147,13.909,13.904,82.81138056]
[1672820812570,124.35095147,13.909,13.905,62.81138056]
[1672820812802,124.35095147,13.909,13.906,20.0]
[1672820812993,124.35095147,13.909,13.906,41.51243447]
[1672820814047,124.35095147,13.909,13.907,21.51243447]
[1672820814370,124.35095147,13.909,13.908,20.0]
[1672820814562,124.35095147,13.909,13.906,41.51243447]
[1672820814781,124.35095147,13.909,13.906,82.81138056]
[1672820815425,436.35095147,13.909,13.906,82.81138056]
[1672820815615,436.35095147,13.909,13.906,61.29894609]
[1672820815828,436.35095147,13.909,13.906,82.81138056]
[1672820817123,436.35095147,13.909,13.906,61.29894609]
[1672820817747,436.35095147,13.909,13.906,20.0]
[1672820818065,436.35095147,13.909,13.905,20.0]
[1672820819112,436.35095147,13.909,13.9,46.1713]
[1672820819322,436.35095147,13.909,13.9,21.51243447]
[1672820821103,124.35095147,13.909,13.896,24.4821]
[1672820821964,124.35095147,13.909,13.897,20.0]
[1672820822674,53.97,13.908,13.897,20.0]
[1672820823095,39.63515818,13.907,13.897,20.0]
[1672820823312,69.41253469,13.906,13.872,54.11]
[1672820823515,69.41253469,13.906,13.872,69.7257]
[1672820823516,58.76,13.9,13.872,69.7257]
[1672820823845,14.69,13.89,13.873,69.7257]
[1672820824163,54.05,13.889,13.873,69.7257]
[1672820824365,326.69,13.89,13.873,69.7257]
[1672820824366,32.41504639,13.888,13.873,69.7257]
[1672820824686,32.41504639,13.889,13.873,69.7257]
[1672820824902,32.41504639,13.889,13.874,54.11]
[1672820825118,32.41504639,13.889,13.875,20.0]
[1672820825305,80.47064639,13.897,13.876,54.1]
[1672820825515,48.0556,13.897,13.876,121.17503447]
[1672820825737,48.0556,13.897,13.877,21.51243447]
[1672820825948,48.0556,13.897,13.878,54.09]
[1672820826166,48.0556,13.897,13.878,99.6526]
[1672820826367,48.0556,13.897,13.879,21.51243447]
[1672820826568,48.0556,13.897,13.88,54.08]
[1672820827006,48.0556,13.897,13.879,67.07503447]
[1672820827217,48.0556,13.897,13.88,20.0]
[1672820827433,48.0556,13.897,13.881,21.51243447]
[1672820827741,48.0556,13.897,13.882,20.0]
[1672820827937,48.0556,13.897,13.88,87.07503447]
[1672820828151,360.0556,13.897,13.881,54.08]
[1672820828360,360.0556,13.897,13.882,20.0]
[1672820829118,360.0556,13.897,13.882,41.51243447]
[1672820829323,10.53491037,13.896,13.882,41.51243447]
[1672820829541,48.0556,13.897,13.882,41.51243447]
[1672820829939,53.98,13.906,13.882,68.43114833]
[1672820830150,47.37,13.906,13.883,125.1514]
[1672820830365,47.37,13.906,13.884,20.0]
[1672820830705,47.37,13.906,13.885,154.73004833]
[1672820831007,47.37,13.906,13.886,41.51243447]
[1672820831219,47.37,13.906,13.887,54.06]
[1672820831412,47.37,13.906,13.888,20.0]
[1672820832485,312.0,13.897,13.888,20.0]
[1672820833521,14.69,13.9,13.888,20.0]
[1672820833722,54.01,13.899,13.886,24.0956]
[1672820835111,54.01,13.899,13.887,20.0]
[1672820836454,312.0,13.89,13.887,20.0]
[1672820837097,312.0,13.89,13.88,20.0]
[1672820837635,54.02,13.897,13.88,20.0]
[1672820840146,14.74,13.89,13.869,92.9426]
[1672820840371,14.74,13.89,13.87,102.1814]
[1672820840686,312.0,13.885,13.871,20.0]
[1672820840998,312.0,13.885,13.87,102.1814]
[1672820841723,45.2898,13.888,13.87,102.1814]
[1672820842136,45.2898,13.888,13.871,20.0]
[1672820842567,45.2898,13.888,13.871,41.51243447]
[1672820843625,45.2898,13.888,13.871,20.0]
[1672820844670,312.0,13.885,13.872,21.51243447]
[1672820844880,312.0,13.885,13.873,20.0]
[1672820845631,45.2898,13.888,13.873,20.0]
[1672820846241,54.06,13.887,13.872,20.0]
[1672820848558,45.2898,13.888,13.872,20.0]
[1672820848769,312.0,13.881,13.872,20.0]
[1672820852137,54.08,13.88,13.872,20.0]
[1672820852347,68.82,13.88,13.871,140.0]
[1672820852664,127.78,13.88,13.871,140.0]
[1672820852879,68.74,13.88,13.871,140.0]
[1672820854347,68.74,13.88,13.872,20.0]
[1672820854543,68.74,13.88,13.871,140.0]
[1672820855169,312.0,13.872,13.871,140.0]
[1672820856138,312.0,13.872,13.871,160.0]
[1672820856753,312.0,13.872,13.871,193.75365255]
[1672820857175,54.07,13.884,13.871,193.75365255]
[1672820857388,47.8719,13.885,13.874,53.19986821]
[1672820857596,23.0929,13.888,13.874,53.19986821]
[1672820857597,23.0929,13.888,13.875,20.0]
[1672820857805,23.0929,13.888,13.875,69.88220365]
[1672820858023,23.0929,13.888,13.876,49.88220365]
[1672820858237,23.0929,13.888,13.877,20.0]
[1672820858665,23.0929,13.888,13.877,69.88220365]
[1672820858871,47.0336,13.893,13.877,69.88220365]
[1672820859085,54.04,13.892,13.877,69.88220365]
[1672820860116,14.74,13.89,13.877,20.0]
[1672820860326,312.0,13.879,13.875,20.0]
[1672820860645,312.0,13.879,13.875,69.88220365]
[1672820861290,23.7138,13.888,13.875,69.88220365]
[1672820861691,23.7138,13.888,13.875,20.0]
[1672820862129,23.7138,13.888,13.876,49.88220365]
[1672820862330,23.7138,13.888,13.877,20.0]
[1672820862543,23.7675,13.889,13.877,20.0]
[1672820862755,23.7675,13.889,13.877,69.88220365]
[1672820863166,23.7675,13.889,13.877,20.0]
[1672820863483,23.7675,13.889,13.875,20.0]
[1672820864333,312.0,13.878,13.875,20.0]
[1672820866316,312.0,13.878,13.874,53.19986821]
[1672820867786,78.9667,13.888,13.874,53.19986821]
[1672820868111,78.9667,13.888,13.875,20.0]
[1672820870947,312.0,13.876,13.875,20.0]
[1672820871357,312.0,13.876,13.874,53.19986821]
[1672820871778,14.68,13.88,13.874,53.19986821]
[1672820873057,14.68,13.88,13.875,20.0]
[1672820873368,54.06,13.885,13.875,20.0]
[1672820873587,54.06,13.885,13.874,53.19986821]
[1672820873798,14.75,13.88,13.874,53.19986821]
[1672820873996,54.06,13.885,13.874,53.19986821]
[1672820874857,312.0,13.88,13.874,53.19986821]
[1672820875171,312.0,13.88,13.875,20.0]
[1672820875571,54.09,13.879,13.875,20.0]
[1672820876116,54.06,13.885,13.875,20.0]
[1672820879675,312.0,13.876,13.875,20.0]
[1672820889463,312.0,13.876,13.872,20.0]
[1672820889662,294.7194,13.876,13.872,20.0]
[1672820890926,294.7194,13.876,13.871,140.0]
[1672820892082,294.7194,13.876,13.872,20.0]
[1672820895655,292.2194,13.876,13.872,20.0]
[1672820901759,54.06,13.885,13.872,20.0]
[1672820902168,49.449,13.886,13.872,20.0]
[1672820903123,47.649,13.886,13.872,20.0]
[1672820904803,312.0,13.882,13.872,20.0]
[1672820905118,312.0,13.882,13.873,127.06205083]
[1672820905311,312.0,13.882,13.874,20.0]
[1672820905645,312.0,13.882,13.875,54.1]
[1672820905832,47.649,13.886,13.877,5.4956198]
[1672820906043,23.7675,13.889,13.878,20.0]
[1672820906691,23.7675,13.889,13.879,8.02833511]
[1672820906903,54.02,13.896,13.878,20.0]
[1672820907128,54.02,13.896,13.879,8.02833511]
[1672820907651,54.02,13.896,13.881,9.84306589]
[1672820907845,54.02,13.896,13.883,15.95380462]
[1672820908061,147.4669,13.909,13.885,16.57555146]
[1672820908269,147.4669,13.909,13.887,16.57555146]
[1672820908485,46.695,13.908,13.887,16.57555146]
[1672820908694,312.0,13.892,13.888,20.0]
[1672820909315,312.0,13.892,13.883,22.9083]
[1672820909525,312.0,13.892,13.884,20.0]
[1672820909746,312.0,13.892,13.884,36.12858336]
[1672820909951,312.0,13.892,13.885,56.12858336]
[1672820910184,312.0,13.892,13.886,20.0]
[1672820910363,53.98,13.907,13.886,20.0]
[1672820910702,46.8772,13.906,13.887,49.4798]
[1672820910899,53.99,13.905,13.888,20.0]
[1672820911539,14.65,13.9,13.87,14.64]
[1672820911757,54.01,13.899,13.874,72.5585]
[1672820912068,54.01,13.899,13.873,262.67236138]
[1672820913123,54.01,13.899,13.873,220.70389283]
[1672820913317,312.0,13.885,13.873,220.70389283]
[1672820913523,312.0,13.885,13.874,54.11]
[1672820913951,312.0,13.885,13.875,36.12858336]
[1672820914273,54.01,13.899,13.875,36.12858336]
[1672820914698,54.01,13.899,13.873,133.13569311]
[1672820914881,54.01,13.899,13.874,20.0]
[1672820915317,54.01,13.899,13.874,74.11]
[1672820915523,54.01,13.899,13.875,5.16284718]
[1672820915732,54.01,13.899,13.876,20.0]
[1672820915943,54.01,13.899,13.874,125.54961636]
[1672820916165,54.01,13.899,13.875,21.51243447]
[1672820916588,54.01,13.899,13.876,20.0]
[1672820917005,54.01,13.899,13.876,41.51243447]
[1672820917316,312.0,13.882,13.876,20.0]
[1672820917539,54.01,13.899,13.876,20.0]
[1672820917540,54.01,13.899,13.877,36.12858336]
[1672820917753,312.0,13.89,13.878,74.09]
[1672820918172,312.0,13.89,13.879,36.12858336]
[1672820918382,312.0,13.89,13.88,20.0]
[1672820918992,312.0,13.89,13.88,56.12858336]
[1672820922169,53.97,13.909,13.88,56.12858336]
[1672820923116,53.97,13.909,13.88,172.10990274]
[1672820923309,53.97,13.909,13.881,54.08]
[1672820923517,53.97,13.909,13.882,20.0]
[1672820923720,53.97,13.909,13.882,56.12858336]
[1672820923930,53.97,13.909,13.883,36.12858336]
[1672820924140,53.97,13.909,13.884,20.0]
[1672820924480,53.97,13.909,13.884,56.12858336]
[1672820924794,53.97,13.909,13.884,20.0]
[1672820925005,53.97,13.909,13.878,20.0]
[1672820925198,312.0,13.889,13.878,56.12858336]
[1672820925412,312.0,13.889,13.879,36.12858336]
[1672820925734,312.0,13.889,13.88,20.0]
[1672820926156,14.76,13.9,13.88,20.0]
[1672820926157,54.01,13.899,13.88,20.0]
[1672820926474,54.01,13.899,13.879,36.12858336]
[1672820926885,54.01,13.899,13.876,133.13569311]
[1672820928697,54.01,13.899,13.877,36.12858336]
[1672820929094,54.01,13.899,13.878,20.0]
[1672820929293,312.0,13.885,13.878,20.0]
[1672820929830,312.0,13.885,13.878,56.12858336]
[1672820931937,54.01,13.899,13.878,56.12858336]